[Event "*** SCC Grand Prix: Titled Tuesday Blitz"]
[Site "Chess.com"]
[Date "2020.08.04"]
[Round "4"]
[White "frederiksvane"]
[Black "Guenplen"]
[Result "1/2-1/2"]
[WhiteElo "2575"]
[BlackElo "2842"]
[TimeControl "180+1"]
[EndTime "14:27:05 PDT"]
[Termination "Game drawn by 50-move rule"]

1. e4 {[%clk 0:03:00.9]} 1... c5 {[%clk 0:03:00]} 2. Nf3 {[%clk 0:03:01]} 2...
e6 {[%clk 0:03:00.4]} 3. d4 {[%clk 0:03:00.9]} 3... cxd4 {[%clk 0:03:01.3]} 4.
Nxd4 {[%clk 0:03:01.8]} 4... Nf6 {[%clk 0:03:01.9]} 5. Nc3 {[%clk 0:03:01.6]}
5... Nc6 {[%clk 0:03:02.4]} 6. Ndb5 {[%clk 0:02:58]} 6... Bc5 {[%clk 0:03:02.2]}
7. Nd6+ {[%clk 0:02:53.2]} 7... Ke7 {[%clk 0:03:02.3]} 8. Bf4 {[%clk 0:02:52.9]}
8... e5 {[%clk 0:03:02.4]} 9. Nf5+ {[%clk 0:02:53.1]} 9... Kf8 {[%clk
0:03:02.7]} 10. Be3 {[%clk 0:02:53.5]} 10... Bb4 {[%clk 0:03:02.6]} 11. Bd3
{[%clk 0:02:21.8]} 11... d6 {[%clk 0:03:00.3]} 12. O-O {[%clk 0:02:17.8]} 12...
Bxf5 {[%clk 0:02:51.2]} 13. exf5 {[%clk 0:02:18.7]} 13... d5 {[%clk 0:02:51.4]}
14. Bg5 {[%clk 0:02:12.2]} 14... Qa5 {[%clk 0:02:43.6]} 15. Rb1 {[%clk
0:01:05.1]} 15... h6 {[%clk 0:02:25.2]} 16. Bh4 {[%clk 0:01:00.1]} 16... Rd8
{[%clk 0:02:23.5]} 17. a3 {[%clk 0:00:59.8]} 17... Be7 {[%clk 0:01:52]} 18. Re1
{[%clk 0:00:59.9]} 18... e4 {[%clk 0:01:49.3]} 19. Bf1 {[%clk 0:00:57.6]} 19...
Qc5 {[%clk 0:01:40.8]} 20. Qd2 {[%clk 0:00:52.4]} 20... Qd4 {[%clk 0:01:29.9]}
21. Qf4 {[%clk 0:00:24.7]} 21... Bd6 {[%clk 0:01:26]} 22. Qe3 {[%clk 0:00:17.6]}
22... Qe5 {[%clk 0:01:05.8]} 23. Bg3 {[%clk 0:00:17.4]} 23... Qxf5 {[%clk
0:01:06.1]} 24. Bxd6+ {[%clk 0:00:15.9]} 24... Rxd6 {[%clk 0:01:07]} 25. Qc5
{[%clk 0:00:16.6]} 25... Ke7 {[%clk 0:00:46.5]} 26. Nb5 {[%clk 0:00:13.4]} 26...
Qe6 {[%clk 0:00:34]} 27. Nxd6 {[%clk 0:00:08]} 27... Qxd6 {[%clk 0:00:34.9]} 28.
Qe3 {[%clk 0:00:05.7]} 28... Rd8 {[%clk 0:00:25.7]} 29. Rbd1 {[%clk 0:00:06.2]}
29... Kf8 {[%clk 0:00:25.4]} 30. Qh3 {[%clk 0:00:05.2]} 30... Ne5 {[%clk
0:00:22.8]} 31. Qf5 {[%clk 0:00:05.3]} 31... g6 {[%clk 0:00:18.5]} 32. Qh3
{[%clk 0:00:05]} 32... Kg7 {[%clk 0:00:17.9]} 33. Qg3 {[%clk 0:00:05.3]} 33...
Nh5 {[%clk 0:00:17.3]} 34. Qh4 {[%clk 0:00:04.1]} 34... Nf6 {[%clk 0:00:16.1]}
35. h3 {[%clk 0:00:04.2]} 35... g5 {[%clk 0:00:15.4]} 36. Qg3 {[%clk 0:00:04.7]}
36... Qc7 {[%clk 0:00:11.5]} 37. c3 {[%clk 0:00:03.3]} 37... Nh5 {[%clk
0:00:10.3]} 38. Qh2 {[%clk 0:00:03.8]} 38... Qd6 {[%clk 0:00:09.2]} 39. Rd2
{[%clk 0:00:04.2]} 39... Nf6 {[%clk 0:00:08.2]} 40. Red1 {[%clk 0:00:04.4]}
40... Ng6 {[%clk 0:00:03.2]} 41. Qxd6 {[%clk 0:00:03.6]} 41... Rxd6 {[%clk
0:00:04.1]} 42. Bc4 {[%clk 0:00:04]} 42... Nf4 {[%clk 0:00:03.9]} 43. g3 {[%clk
0:00:04.5]} 43... Nxh3+ {[%clk 0:00:04]} 44. Kg2 {[%clk 0:00:05.1]} 44... g4
{[%clk 0:00:04.9]} 45. Bxd5 {[%clk 0:00:05.5]} 45... Ng5 {[%clk 0:00:04.2]} 46.
Bxb7 {[%clk 0:00:04.5]} 46... Rb6 {[%clk 0:00:04.3]} 47. Bc8 {[%clk 0:00:04]}
47... Nf3 {[%clk 0:00:04]} 48. Re2 {[%clk 0:00:04.4]} 48... Rb5 {[%clk
0:00:03.1]} 49. Bd7 {[%clk 0:00:04.2]} 49... Rh5 {[%clk 0:00:02.6]} 50. Rh1
{[%clk 0:00:03.3]} 50... Rxh1 {[%clk 0:00:02.6]} 51. Kxh1 {[%clk 0:00:04.2]}
51... Nxd7 {[%clk 0:00:03.4]} 52. Rxe4 {[%clk 0:00:04.9]} 52... Nf6 {[%clk
0:00:03.5]} 53. Ra4 {[%clk 0:00:05.5]} 53... Kg6 {[%clk 0:00:03.3]} 54. Kg2
{[%clk 0:00:06]} 54... Ne1+ {[%clk 0:00:03]} 55. Kf1 {[%clk 0:00:06.1]} 55...
Nd3 {[%clk 0:00:03.9]} 56. b4 {[%clk 0:00:06.2]} 56... Ne4 {[%clk 0:00:03.1]}
57. Rxa7 {[%clk 0:00:05.7]} 57... Nxc3 {[%clk 0:00:03.2]} 58. Rb7 {[%clk
0:00:03.3]} 58... f6 {[%clk 0:00:02.5]} 59. b5 {[%clk 0:00:03.7]} 59... Nc5
{[%clk 0:00:02.8]} 60. Rc7 {[%clk 0:00:03.6]} 60... N3a4 {[%clk 0:00:03.2]} 61.
b6 {[%clk 0:00:03.2]} 61... Ne6 {[%clk 0:00:03.1]} 62. b7 {[%clk 0:00:03.2]}
62... Nxc7 {[%clk 0:00:02.3]} 63. b8=Q {[%clk 0:00:04.1]} 63... Ne6 {[%clk
0:00:03.2]} 64. Qd6 {[%clk 0:00:03.9]} 64... Nec5 {[%clk 0:00:03.4]} 65. Qd5
{[%clk 0:00:03.7]} 65... h5 {[%clk 0:00:04.3]} 66. Qc4 {[%clk 0:00:04.2]} 66...
f5 {[%clk 0:00:04.5]} 67. Kg2 {[%clk 0:00:04.7]} 67... Kf6 {[%clk 0:00:05.4]}
68. Qb5 {[%clk 0:00:05]} 68... Ke5 {[%clk 0:00:05.7]} 69. Qc6 {[%clk 0:00:05.2]}
69... Kd4 {[%clk 0:00:05.5]} 70. Qf6+ {[%clk 0:00:05.1]} 70... Ke4 {[%clk
0:00:05.8]} 71. Qg5 {[%clk 0:00:05.5]} 71... Ke5 {[%clk 0:00:05.6]} 72. Qf4+
{[%clk 0:00:05.8]} 72... Ke6 {[%clk 0:00:05.7]} 73. Qh6+ {[%clk 0:00:06.4]}
73... Ke5 {[%clk 0:00:06.2]} 74. Qxh5 {[%clk 0:00:07.3]} 74... Ke4 {[%clk
0:00:06]} 75. Qe8+ {[%clk 0:00:07.6]} 75... Kd4 {[%clk 0:00:06.2]} 76. Qe3+
{[%clk 0:00:08.1]} 76... Kd5 {[%clk 0:00:06.3]} 77. Qf4 {[%clk 0:00:07.9]} 77...
Ke6 {[%clk 0:00:06.8]} 78. Kf1 {[%clk 0:00:08.5]} 78... Kf6 {[%clk 0:00:07.2]}
79. Qd4+ {[%clk 0:00:08.3]} 79... Ke6 {[%clk 0:00:07.5]} 80. Ke2 {[%clk
0:00:09]} 80... Ke7 {[%clk 0:00:07]} 81. Ke3 {[%clk 0:00:08.8]} 81... Kf7 {[%clk
0:00:05.9]} 82. Qd5+ {[%clk 0:00:09.1]} 82... Kf6 {[%clk 0:00:06.2]} 83. Kf4
{[%clk 0:00:09.5]} 83... Ne6+ {[%clk 0:00:06.5]} 84. Ke3 {[%clk 0:00:10.2]}
84... Nec5 {[%clk 0:00:06.1]} 85. Qc4 {[%clk 0:00:10.4]} 85... Ke5 {[%clk
0:00:05.6]} 86. Qd4+ {[%clk 0:00:10.3]} 86... Ke6 {[%clk 0:00:05.4]} 87. Kf4
{[%clk 0:00:09.2]} 87... Kf7 {[%clk 0:00:01.6]} 88. Kxf5 {[%clk 0:00:09.6]}
88... Ke7 {[%clk 0:00:02]} 89. Kxg4 {[%clk 0:00:08.6]} 89... Kf7 {[%clk
0:00:02]} 90. f4 {[%clk 0:00:09.1]} 90... Ke7 {[%clk 0:00:02]} 91. Kg5 {[%clk
0:00:09.3]} 91... Ne6+ {[%clk 0:00:01.6]} 92. Kg6 {[%clk 0:00:09.8]} 92... Nxd4
{[%clk 0:00:02.5]} 93. f5 {[%clk 0:00:10.7]} 93... Nc6 {[%clk 0:00:02.4]} 94.
Kg7 {[%clk 0:00:10]} 94... Ne5 {[%clk 0:00:02.4]} 95. g4 {[%clk 0:00:10]} 95...
Nxg4 {[%clk 0:00:02.6]} 96. f6+ {[%clk 0:00:10.5]} 96... Nxf6 {[%clk 0:00:03.5]}
97. Kg6 {[%clk 0:00:11.4]} 97... Ke6 {[%clk 0:00:04.4]} 98. Kg5 {[%clk
0:00:11.8]} 98... Ke5 {[%clk 0:00:05.2]} 99. Kg6 {[%clk 0:00:12.3]} 99... Nd5
{[%clk 0:00:05.5]} 100. Kf7 {[%clk 0:00:13.2]} 100... Nf4 {[%clk 0:00:06.4]}
101. Ke7 {[%clk 0:00:13.3]} 101... Ne6 {[%clk 0:00:07.3]} 102. Kd7 {[%clk
0:00:13.9]} 102... Kd5 {[%clk 0:00:07.5]} 103. Ke7 {[%clk 0:00:14.4]} 103... Nd4
{[%clk 0:00:07.6]} 104. Kf6 {[%clk 0:00:14.2]} 104... Kd6 {[%clk 0:00:07.9]}
105. Kg6 {[%clk 0:00:11.7]} 105... Ke5 {[%clk 0:00:08.8]} 106. Kf7 {[%clk
0:00:11.9]} 106... Nc6 {[%clk 0:00:08.8]} 107. Kg6 {[%clk 0:00:11.8]} 107...
Ne7+ {[%clk 0:00:09]} 108. Kf7 {[%clk 0:00:11.1]} 108... Nf5 {[%clk 0:00:09.2]}
109. Kg6 {[%clk 0:00:12]} 109... Nd6 {[%clk 0:00:09.2]} 110. Kg5 {[%clk
0:00:11.8]} 110... Ne4+ {[%clk 0:00:09.6]} 111. Kg6 {[%clk 0:00:12]} 111... Ke6
{[%clk 0:00:10]} 112. Kg7 {[%clk 0:00:11.3]} 112... Nd6 {[%clk 0:00:09.4]} 113.
Kg6 {[%clk 0:00:11.7]} 113... Nf7 {[%clk 0:00:09.8]} 114. Kg7 {[%clk 0:00:11.7]}
114... Ne5 {[%clk 0:00:10.2]} 115. Kh6 {[%clk 0:00:09.3]} 115... Kf5 {[%clk
0:00:10.2]} 116. Kh5 {[%clk 0:00:10]} 116... Ng6 {[%clk 0:00:09.8]} 117. Kh6
{[%clk 0:00:10.3]} 117... Nf4 {[%clk 0:00:10.6]} 118. Kg7 {[%clk 0:00:10.5]}
118... Ng6 {[%clk 0:00:07.5]} 119. Kf7 {[%clk 0:00:11.4]} 119... Nf4 {[%clk
0:00:07.1]} 120. Ke7 {[%clk 0:00:12.3]} 120... Ke5 {[%clk 0:00:06.9]} 121. Kd7
{[%clk 0:00:12.4]} 121... Nd5 {[%clk 0:00:06.7]} 122. Kc6 {[%clk 0:00:13.3]}
122... Ke6 {[%clk 0:00:06.3]} 123. Kb5 {[%clk 0:00:13.3]} 123... Ndc3+ {[%clk
0:00:06.6]} 124. Kc4 {[%clk 0:00:13.4]} 124... Kd6 {[%clk 0:00:07.5]} 125. Kd4
{[%clk 0:00:13.8]} 125... Kc6 {[%clk 0:00:07.8]} 126. Kc4 {[%clk 0:00:14.3]}
126... Kb6 {[%clk 0:00:07.9]} 127. Kd4 {[%clk 0:00:14.7]} 127... Kb5 {[%clk
0:00:08.8]} 128. Ke5 {[%clk 0:00:14.6]} 128... Kc5 {[%clk 0:00:09.2]} 129. Ke6
{[%clk 0:00:14.5]} 129... Nd5 {[%clk 0:00:08.7]} 130. Ke5 {[%clk 0:00:15.4]}
130... Ndb6 {[%clk 0:00:08.6]} 131. Ke4 {[%clk 0:00:16.3]} 131... Nc3+ {[%clk
0:00:08.1]} 132. Ke5 {[%clk 0:00:17.2]} 132... Nba4 {[%clk 0:00:08.4]} 133. Kf4
{[%clk 0:00:17.3]} 133... Kd4 {[%clk 0:00:08.4]} 134. Kf5 {[%clk 0:00:17.8]}
134... Kd5 {[%clk 0:00:08.8]} 135. Kf4 {[%clk 0:00:18.3]} 135... Ke6 {[%clk
0:00:09.3]} 136. Ke3 {[%clk 0:00:19.2]} 136... Ke5 {[%clk 0:00:09.7]} 137. Kd3
{[%clk 0:00:19.7]} 137... Kd5 {[%clk 0:00:09.8]} 138. Ke3 {[%clk 0:00:20.2]}
138... Ne4 {[%clk 0:00:10.1]} 139. Kf4 {[%clk 0:00:21.1]} 139... Kd4 {[%clk
0:00:10.1]} 140. Kf5 {[%clk 0:00:22]} 140... Nd6+ {[%clk 0:00:10]} 141. Ke6
{[%clk 0:00:22.9]} 141... Kc5 {[%clk 0:00:10.2]} 142. Ke5 {[%clk 0:00:23]}
142... Nc4+ {[%clk 0:00:10.5]} 143. Ke4 {[%clk 0:00:23.9]} 143... Ncb6 {[%clk
0:00:09.9]} 144. Ke5 {[%clk 0:00:24.8]} 144... Nd7+ {[%clk 0:00:10.1]} 145. Ke4
{[%clk 0:00:25.7]} 145... Kd6 {[%clk 0:00:08.8]} 146. Kd4 {[%clk 0:00:25.7]}
146... Ne5 {[%clk 0:00:09.2]} 1/2-1/2

[Event "*** SCC Grand Prix: Titled Tuesday Blitz"]
[Site "Chess.com"]
[Date "2020.08.04"]
[Round "5"]
[White "keepitcool9499"]
[Black "Sam_ChessMood"]
[Result "0-1"]
[WhiteElo "2642"]
[BlackElo "2809"]
[TimeControl "180+1"]
[EndTime "14:35:19 PDT"]
[Termination "Sam_ChessMood won by resignation"]

1. d4 {[%clk 0:03:00.9]} 1... Nf6 {[%clk 0:02:59.7]} 2. c4 {[%clk 0:02:58.4]}
2... e6 {[%clk 0:03:00]} 3. Nc3 {[%clk 0:02:58.6]} 3... Bb4 {[%clk 0:02:59.7]}
4. Bd2 {[%clk 0:02:57.6]} 4... O-O {[%clk 0:02:58.8]} 5. e3 {[%clk 0:02:53.1]}
5... b6 {[%clk 0:02:57.9]} 6. Nf3 {[%clk 0:02:53.5]} 6... Bb7 {[%clk 0:02:57.6]}
7. Bd3 {[%clk 0:02:54]} 7... d5 {[%clk 0:02:55.1]} 8. a3 {[%clk 0:02:53.6]} 8...
Bd6 {[%clk 0:02:52.5]} 9. Qc2 {[%clk 0:02:52.2]} 9... dxc4 {[%clk 0:02:34.9]}
10. Bxc4 {[%clk 0:02:53.1]} 10... Nbd7 {[%clk 0:02:34.9]} 11. e4 {[%clk
0:02:41.9]} 11... e5 {[%clk 0:02:34.7]} 12. dxe5 {[%clk 0:02:35.4]} 12... Nxe5
{[%clk 0:02:34.6]} 13. Nxe5 {[%clk 0:02:35.3]} 13... Bxe5 {[%clk 0:02:35.5]} 14.
f3 {[%clk 0:02:29.5]} 14... Qe7 {[%clk 0:02:32.1]} 15. O-O {[%clk 0:02:17.1]}
15... Qc5+ {[%clk 0:02:28]} 0-1

[Event "*** SCC Grand Prix: Titled Tuesday Blitz"]
[Site "Chess.com"]
[Date "2020.08.04"]
[Round "5"]
[White "Justinz"]
[Black "ChainsOfFantasia"]
[Result "0-1"]
[WhiteElo "2349"]
[BlackElo "2508"]
[TimeControl "180+1"]
[EndTime "14:37:01 PDT"]
[Termination "ChainsOfFantasia won by resignation"]

1. e4 {[%clk 0:03:00.9]} 1... e6 {[%clk 0:02:59.8]} 2. d4 {[%clk 0:03:00.2]}
2... d5 {[%clk 0:03:00.7]} 3. Nc3 {[%clk 0:02:59.8]} 3... Nf6 {[%clk 0:02:57.6]}
4. Bg5 {[%clk 0:02:58.7]} 4... dxe4 {[%clk 0:02:54.8]} 5. Nxe4 {[%clk
0:02:57.6]} 5... Be7 {[%clk 0:02:55.2]} 6. Bxf6 {[%clk 0:02:56.5]} 6... gxf6
{[%clk 0:02:54.5]} 7. Nf3 {[%clk 0:02:56.3]} 7... f5 {[%clk 0:02:55]} 8. Nc3
{[%clk 0:02:53.8]} 8... a6 {[%clk 0:02:55.4]} 9. Qd2 {[%clk 0:02:41.9]} 9... c5
{[%clk 0:02:53.3]} 10. O-O-O {[%clk 0:02:39.7]} 10... cxd4 {[%clk 0:02:39.3]}
11. Nxd4 {[%clk 0:02:39.2]} 11... Nc6 {[%clk 0:02:38.8]} 12. Be2 {[%clk
0:02:18.1]} 12... Nxd4 {[%clk 0:02:35.2]} 13. Qxd4 {[%clk 0:02:17.7]} 13... Qxd4
{[%clk 0:02:35.1]} 14. Rxd4 {[%clk 0:02:17.9]} 14... Bc5 {[%clk 0:02:26]} 15.
Rd2 {[%clk 0:02:03.8]} 15... Bxf2 {[%clk 0:02:23]} 16. Bb5+ {[%clk 0:02:03.1]}
16... axb5 {[%clk 0:02:22.5]} 17. Rxf2 {[%clk 0:02:03.6]} 17... b4 {[%clk
0:02:22.8]} 18. Nb5 {[%clk 0:02:03.1]} 18... Rxa2 {[%clk 0:02:22]} 19. Kb1
{[%clk 0:01:58.3]} 19... Ra5 {[%clk 0:02:21.8]} 20. Nd6+ {[%clk 0:01:51.6]}
20... Ke7 {[%clk 0:02:21.6]} 21. Rd1 {[%clk 0:01:51.3]} 21... Bd7 {[%clk
0:01:38.2]} 22. Rf4 {[%clk 0:01:49.6]} 22... Rha8 {[%clk 0:01:31]} 0-1

[Event "*** SCC Grand Prix: Titled Tuesday Blitz"]
[Site "Chess.com"]
[Date "2020.08.04"]
[Round "5"]
[White "tlomigtlis"]
[Black "BJthechessgod"]
[Result "1-0"]
[WhiteElo "2421"]
[BlackElo "2257"]
[TimeControl "180+1"]
[EndTime "14:38:36 PDT"]
[Termination "tlomigtlis won by resignation"]

1. d4 {[%clk 0:03:00.9]} 1... Nf6 {[%clk 0:02:56.8]} 2. c4 {[%clk 0:02:59.4]}
2... b6 {[%clk 0:02:56.1]} 3. Nc3 {[%clk 0:02:57.2]} 3... e6 {[%clk 0:02:56.1]}
4. Qc2 {[%clk 0:02:54.9]} 4... Bb4 {[%clk 0:02:54.7]} 5. a3 {[%clk 0:02:52.8]}
5... Bxc3+ {[%clk 0:02:40.9]} 6. Qxc3 {[%clk 0:02:53.7]} 6... Bb7 {[%clk
0:02:39.7]} 7. Bg5 {[%clk 0:02:53.5]} 7... O-O {[%clk 0:02:36.5]} 8. e3 {[%clk
0:02:53.5]} 8... d6 {[%clk 0:02:36.1]} 9. Ne2 {[%clk 0:02:53.4]} 9... Nbd7
{[%clk 0:02:36.2]} 10. Qc2 {[%clk 0:02:53.4]} 10... h6 {[%clk 0:02:36.1]} 11.
Bh4 {[%clk 0:02:53]} 11... g5 {[%clk 0:02:35.6]} 12. Bg3 {[%clk 0:02:52.6]}
12... Ne4 {[%clk 0:02:36.5]} 13. Nc3 {[%clk 0:02:40.4]} 13... f5 {[%clk
0:02:35.3]} 14. Bd3 {[%clk 0:02:37.5]} 14... Ndf6 {[%clk 0:02:34.6]} 15. f3
{[%clk 0:02:25.5]} 15... Nxc3 {[%clk 0:02:30.1]} 16. Qxc3 {[%clk 0:02:21.9]}
16... Qe7 {[%clk 0:02:27.6]} 17. O-O-O {[%clk 0:02:15.9]} 17... a5 {[%clk
0:02:18]} 18. h4 {[%clk 0:02:12.2]} 18... g4 {[%clk 0:02:10.5]} 19. fxg4 {[%clk
0:01:41.6]} 19... Nxg4 {[%clk 0:02:11.4]} 20. Qd2 {[%clk 0:01:33.4]} 20... h5
{[%clk 0:02:02.4]} 21. Rde1 {[%clk 0:01:31.2]} 21... Be4 {[%clk 0:02:00.2]} 22.
Qc2 {[%clk 0:01:24.3]} 22... Bxd3 {[%clk 0:01:52.1]} 23. Qxd3 {[%clk 0:01:24.2]}
23... d5 {[%clk 0:01:46.7]} 24. Rhf1 {[%clk 0:01:16.4]} 24... dxc4 {[%clk
0:01:34.6]} 25. Qxc4 {[%clk 0:01:17.3]} 25... Nf6 {[%clk 0:01:26.7]} 26. Rxf5
{[%clk 0:01:10.3]} 26... Ne4 {[%clk 0:01:25.2]} 27. Rxh5 {[%clk 0:00:49.3]}
27... Nxg3 {[%clk 0:01:17.7]} 28. Rg5+ {[%clk 0:00:49]} 28... Kf7 {[%clk
0:01:13.9]} 29. Rxg3 {[%clk 0:00:46.2]} 29... Rg8 {[%clk 0:01:07.8]} 30. Rf1+
{[%clk 0:00:45.5]} 30... Qf6 {[%clk 0:01:06.2]} 31. Qxc7+ {[%clk 0:00:44.2]}
31... Ke8 {[%clk 0:01:05.3]} 32. Rxg8+ {[%clk 0:00:44.1]} 1-0

[Event "*** SCC Grand Prix: Titled Tuesday Blitz"]
[Site "Chess.com"]
[Date "2020.08.04"]
[Round "5"]
[White "Ermito2020"]
[Black "VerdeNotte"]
[Result "0-1"]
[WhiteElo "2671"]
[BlackElo "2858"]
[TimeControl "180+1"]
[EndTime "14:38:38 PDT"]
[Termination "VerdeNotte won by resignation"]

1. e4 {[%clk 0:03:00.9]} 1... e5 {[%clk 0:02:58.5]} 2. Nf3 {[%clk 0:02:55.3]}
2... Nc6 {[%clk 0:02:58.6]} 3. d4 {[%clk 0:02:53.7]} 3... exd4 {[%clk
0:02:58.2]} 4. Bc4 {[%clk 0:02:49.9]} 4... Bc5 {[%clk 0:02:57]} 5. c3 {[%clk
0:02:40]} 5... Nf6 {[%clk 0:02:54.3]} 6. e5 {[%clk 0:02:38.1]} 6... d5 {[%clk
0:02:51.5]} 7. Bb5 {[%clk 0:02:38.7]} 7... Ne4 {[%clk 0:02:50.6]} 8. cxd4 {[%clk
0:02:39.3]} 8... Bb6 {[%clk 0:02:51]} 9. Nc3 {[%clk 0:02:39.2]} 9... O-O {[%clk
0:02:50.8]} 10. Be3 {[%clk 0:02:38.4]} 10... Bg4 {[%clk 0:02:47.9]} 11. h3
{[%clk 0:02:38.4]} 11... Bh5 {[%clk 0:02:48.1]} 12. Bd3 {[%clk 0:02:32.1]} 12...
Nxd4 {[%clk 0:02:29.4]} 13. g4 {[%clk 0:01:59.3]} 13... Nxc3 {[%clk 0:02:17.8]}
14. bxc3 {[%clk 0:01:58.1]} 14... Nxf3+ {[%clk 0:02:17.1]} 15. Qxf3 {[%clk
0:01:58.8]} 15... Bg6 {[%clk 0:02:17.2]} 16. Bxg6 {[%clk 0:01:52.5]} 16... fxg6
{[%clk 0:02:17.2]} 17. Qe2 {[%clk 0:01:51.8]} 17... Ba5 {[%clk 0:02:06.5]} 18.
Bd2 {[%clk 0:01:47.7]} 18... Qh4 {[%clk 0:01:59.8]} 19. Kf1 {[%clk 0:01:34.9]}
19... Bb6 {[%clk 0:01:54.1]} 20. Be3 {[%clk 0:01:34]} 20... Bxe3 {[%clk
0:01:27.7]} 21. Qxe3 {[%clk 0:01:34.9]} 21... Rxf2+ {[%clk 0:01:26.6]} 22. Qxf2
{[%clk 0:01:34]} 22... Rf8 {[%clk 0:01:27.5]} 23. Qxf8+ {[%clk 0:01:33.8]} 23...
Kxf8 {[%clk 0:01:28.1]} 24. Kg2 {[%clk 0:01:33.8]} 24... Qg5 {[%clk 0:01:25.2]}
25. Rhf1+ {[%clk 0:01:29.2]} 25... Ke7 {[%clk 0:01:25.3]} 26. Rae1 {[%clk
0:01:27.8]} 26... Qd2+ {[%clk 0:01:25.1]} 27. Kh1 {[%clk 0:01:24.7]} 27... Ke6
{[%clk 0:01:22.6]} 28. Rc1 {[%clk 0:01:02.2]} 28... Qxa2 {[%clk 0:01:17.8]} 29.
Kg1 {[%clk 0:01:00.7]} 29... Qd2 {[%clk 0:01:12]} 30. c4 {[%clk 0:00:54.1]}
30... dxc4 {[%clk 0:01:04.8]} 31. Rxc4 {[%clk 0:00:49.8]} 31... Qe3+ {[%clk
0:01:05.1]} 32. Kg2 {[%clk 0:00:49.9]} 32... Qe2+ {[%clk 0:01:05.1]} 0-1

[Event "*** SCC Grand Prix: Titled Tuesday Blitz"]
[Site "Chess.com"]
[Date "2020.08.04"]
[Round "5"]
[White "SantoBlue"]
[Black "Mazetovic"]
[Result "1-0"]
[WhiteElo "2916"]
[BlackElo "2702"]
[TimeControl "180+1"]
[EndTime "14:38:47 PDT"]
[Termination "SantoBlue won by resignation"]

1. e4 {[%clk 0:02:59.8]} 1... c5 {[%clk 0:02:59.9]} 2. Nf3 {[%clk 0:02:58.7]}
2... Nc6 {[%clk 0:03:00.1]} 3. c3 {[%clk 0:02:53.8]} 3... Nf6 {[%clk 0:02:56]}
4. e5 {[%clk 0:02:52.8]} 4... Nd5 {[%clk 0:02:56.3]} 5. Bc4 {[%clk 0:02:50.6]}
5... Nb6 {[%clk 0:02:56.2]} 6. Bb3 {[%clk 0:02:50.6]} 6... c4 {[%clk 0:02:54.3]}
7. Bc2 {[%clk 0:02:50.6]} 7... Qc7 {[%clk 0:02:54.5]} 8. O-O {[%clk 0:02:47.4]}
8... Nxe5 {[%clk 0:02:53.4]} 9. Nxe5 {[%clk 0:02:47.8]} 9... Qxe5 {[%clk
0:02:53.2]} 10. Re1 {[%clk 0:02:48.7]} 10... Qf6 {[%clk 0:02:41.6]} 11. a4
{[%clk 0:02:46]} 11... e6 {[%clk 0:02:37.6]} 12. Qh5 {[%clk 0:02:36]} 12... g6
{[%clk 0:02:27.9]} 13. Qb5 {[%clk 0:02:33.6]} 13... Be7 {[%clk 0:02:23.5]} 14.
a5 {[%clk 0:02:30.7]} 14... Nd5 {[%clk 0:02:23.4]} 15. Qxc4 {[%clk 0:02:31.1]}
15... O-O {[%clk 0:02:21]} 16. d4 {[%clk 0:02:31.6]} 16... Bd6 {[%clk
0:01:58.2]} 17. Nd2 {[%clk 0:02:27.7]} 17... b5 {[%clk 0:01:25.3]} 18. axb6
{[%clk 0:02:17.6]} 18... Nxb6 {[%clk 0:01:23]} 19. Qe2 {[%clk 0:02:16.2]} 19...
Bb7 {[%clk 0:01:20.8]} 20. Be4 {[%clk 0:02:08.4]} 20... Bd5 {[%clk 0:01:03.6]}
21. c4 {[%clk 0:02:05.2]} 21... Rae8 {[%clk 0:00:44.8]} 22. c5 {[%clk
0:01:59.3]} 22... Qxd4 {[%clk 0:00:39.3]} 23. cxb6 {[%clk 0:01:57.3]} 23... Qxb6
{[%clk 0:00:34.8]} 24. Nf3 {[%clk 0:01:52.1]} 24... Bxe4 {[%clk 0:00:31.5]} 25.
Qxe4 {[%clk 0:01:52]} 25... Be7 {[%clk 0:00:31.3]} 26. Bh6 {[%clk 0:01:46.6]}
26... f5 {[%clk 0:00:31.3]} 27. Qa4 {[%clk 0:01:39.3]} 27... Rf7 {[%clk
0:00:29]} 28. Ne5 {[%clk 0:01:39]} 28... Bc5 {[%clk 0:00:28.4]} 29. Be3 {[%clk
0:01:29.5]} 29... Bxe3 {[%clk 0:00:26.7]} 30. Rxe3 {[%clk 0:01:30.4]} 30... Rfe7
{[%clk 0:00:26.1]} 31. Nxd7 {[%clk 0:01:28.3]} 31... Qc7 {[%clk 0:00:24.9]} 32.
Nf6+ {[%clk 0:01:27.9]} 1-0

[Event "*** SCC Grand Prix: Titled Tuesday Blitz"]
[Site "Chess.com"]
[Date "2020.08.04"]
[Round "5"]
[White "Rud_Makarian"]
[Black "exoticprincess"]
[Result "0-1"]
[WhiteElo "2650"]
[BlackElo "2832"]
[TimeControl "180+1"]
[EndTime "14:38:51 PDT"]
[Termination "exoticprincess won on time"]

1. e4 {[%clk 0:02:51.6]} 1... c6 {[%clk 0:03:00.9]} 2. d4 {[%clk 0:02:51.2]}
2... d5 {[%clk 0:03:01.8]} 3. Nc3 {[%clk 0:02:51.8]} 3... dxe4 {[%clk 0:03:01]}
4. Nxe4 {[%clk 0:02:52.7]} 4... Bf5 {[%clk 0:03:01.6]} 5. Ng3 {[%clk 0:02:52.7]}
5... Bg6 {[%clk 0:03:02.2]} 6. h4 {[%clk 0:02:53.6]} 6... h6 {[%clk 0:03:02.6]}
7. Nf3 {[%clk 0:02:53.4]} 7... Nd7 {[%clk 0:03:03.1]} 8. Bd3 {[%clk 0:02:53.1]}
8... Bxd3 {[%clk 0:03:02.9]} 9. Qxd3 {[%clk 0:02:54]} 9... e6 {[%clk 0:03:03.8]}
10. Bf4 {[%clk 0:02:53.6]} 10... Ngf6 {[%clk 0:03:03.9]} 11. O-O-O {[%clk
0:02:53.1]} 11... Qb6 {[%clk 0:03:00.2]} 12. Ne4 {[%clk 0:02:45.5]} 12... Nxe4
{[%clk 0:02:54.9]} 13. Qxe4 {[%clk 0:02:46.4]} 13... O-O-O {[%clk 0:02:52.2]}
14. Ne5 {[%clk 0:02:28.6]} 14... Nxe5 {[%clk 0:02:48.2]} 15. Bxe5 {[%clk
0:02:29.5]} 15... h5 {[%clk 0:02:43.7]} 16. Rh3 {[%clk 0:02:22.4]} 16... Qb5
{[%clk 0:02:25.8]} 17. Rf3 {[%clk 0:01:09.2]} 17... Rd7 {[%clk 0:02:24.9]} 18.
b3 {[%clk 0:01:05]} 18... Qd5 {[%clk 0:02:18.4]} 19. Qe2 {[%clk 0:01:01.4]}
19... Rg8 {[%clk 0:02:08.9]} 20. c4 {[%clk 0:00:57.1]} 20... Qa5 {[%clk
0:02:08.4]} 21. Kb1 {[%clk 0:00:49.6]} 21... g6 {[%clk 0:02:08.8]} 22. d5 {[%clk
0:00:32.1]} 22... exd5 {[%clk 0:01:39.4]} 23. cxd5 {[%clk 0:00:22.5]} 23... Rxd5
{[%clk 0:01:39.5]} 24. Rxf7 {[%clk 0:00:02.2]} 24... Rxe5 {[%clk 0:01:39.2]} 25.
Qf3 {[%clk 0:00:02.6]} 25... Ba3 {[%clk 0:01:26.8]} 0-1